Cogmind - Beta 13 @@@ ROGUE MODE // 2024.04.01 @ 18:53:17 Player: kilohertz Result: Destroyed by as-09697 with Assembled Maul Performance ------------- Evolutions (0) 0 Regions Visited (2) 400 Robots Destroyed (8) 40 Value Destroyed (232) 232 Prototype IDs (0) 0 Alien Tech Used (0) 0 Bonus (0) 0 TOTAL SCORE: 672 Bonus ------- None Cogmind --------- Core Integrity 0/250 Matter 300/300 Energy 114/140 System Corruption 6% Temperature Cool (1) Movement Walking (260) Ox2 Location -10/Mines Parts ------- > --- POWER (1) -------- Light Deuterium Engine > --- PROPULSION (2) --- Aluminum Leg Aluminum Leg > --- UTILITY (2) ------ High-capacity Storage Unit > --- WEAPON (2) ------- Light Assault Rifle > --- INVENTORY (20) --- Light Ion Engine Light Ion Engine Light Ion Engine Light Ion Engine Flight Unit Flight Unit Flight Unit Heat Sink Small Storage Unit Huge Storage Unit Medium Battery (150) Large Matter Pod (28) Improved Terrain Scanner Improved Terrain Scanner Light Assault Rifle Light Assault Rifle Mini Grenade Launcher Welding Torch Plasma Flamer Peak State ------------ > --- POWER ------------ Light Deuterium Engine > --- PROPULSION ------- Aluminum Leg Aluminum Leg > --- UTILITY ---------- High-capacity Storage Unit Improved Terrain Scanner > --- WEAPON ----------- Light Assault Rifle Light Cannon > --- INVENTORY -------- Ion Engine Light Ion Engine Light Ion Engine Light Ion Engine Light Treads Flight Unit Flight Unit Flight Unit Heat Sink Small Storage Unit Huge Storage Unit Medium Battery Light Assault Rifle Light Assault Rifle Mini Grenade Launcher Welding Torch Plasma Flamer [Rating: 13] Favorites ----------- Power Ion Engine Engine Ion Engine Propulsion Light Treads Treads Light Treads Leg Aluminum Leg Flight Unit Flight Unit Utility High-capacity Storage Unit Device Improved Terrain Scanner Storage High-capacity Storage Unit Processor Signal Interpreter Weapon Assault Rifle Energy Gun EM Pulse Gun Ballistic Gun Assault Rifle Ballistic Cannon Light Cannon Build | -11 -10 -10 ------- Run | Yrd Mat Min Slots Evolved . | . . . Power . | . . . Propulsion . | . . . Utility . | . . . Weapon . | . . . Parts Attached 26 | 5 6 15 Power 4 | 1 1 2 Engine 4 | 1 1 2 Core . | . . . Reactor . | . . . Propulsion 10 | 2 . 8 Treads 4 | 2 . 2 Leg 4 | . . 4 Wheel . | . . . Hover . | . . . Flight 2 | . . 2 Utility 5 | 1 2 2 Device 1 | . . 1 Storage 2 | 1 1 . Processor 2 | . 1 1 Hackware . | . . . Protection . | . . . Artifact . | . . . Weapon 7 | 1 3 3 Energy Gun 1 | . 1 . Energy Cannon . | . . . Ballistic Gun 5 | 1 2 2 Ballistic Cannon 1 | . . 1 Launcher . | . . . Special Weapon . | . . . Impact Weapon . | . . . Slashing Weapon . | . . . Piercing Weapon . | . . . Special Melee Weapon . | . . . Unidentified Prototypes . | . . . Parts Lost 7 | . 1 6 Power 1 | . . 1 Propulsion 1 | . . 1 Utility 1 | . . 1 Weapon 4 | . 1 3 Highest Loss Streak 2 | . 1 2 To Critical Strikes . | . . . Average Slot Usage (%) 96 | . 94 98 Engine 13 | . 14 13 Treads 18 | . 28 7 Leg 9 | . . 19 Device 3 | . . 7 Storage 14 | . 14 14 Processor 8 | . 11 6 Energy Gun 1 | . 2 . Ballistic Gun 19 | . 23 15 Ballistic Cannon 5 | . . 11 Naked Turns . | . . . Heaviest Build 51 | 10 49 51 Greatest Support 40 | 40 40 40 Greatest Overweight (x) 2 | . 1 2 Average Overweight (x) 1 | . . 1 Largest Inventory Capacity 20 | 8 20 20 Average Capacity 18 | 7 17 20 Most Carried 20 | 5 11 20 Average Carried 10 | 3 7 14 Final Capacity 20 | 8 20 20 Final Carried 19 | 5 11 19 Class Distribution -------------------- 100% | Mutant Dominant Class ---------------- Mutant | -10/Materials Mutant | -10/Mines Resources | -11 -10 -10 ----------- Run | Yrd Mat Min Matter Collected 794 | 244 143 407 Remotely . | . . . Salvage Created 422 | . 320 102 Parts 21 | . 21 . Haulers Intercepted . | . . . Recyclers Shooed . | . . . Parts Field Recycled . | . . . Retrieved Matter . | . . . Parts Self-Destructed . | . . . Prevented . | . . . Kills | -11 -10 -10 ------- Run | Yrd Mat Min Combat Hostiles Destroyed 17 | . 4 13 Guns 10 | . 4 6 Cannons 7 | . . 7 Classes Destroyed 5 | . 4 1 Builder 1 | . 1 . Recycler 1 | . 1 . Watcher 2 | . 2 . Grunt 4 | . 4 . Assembled 13 | . . 13 Best Kill Streak 5 | . 4 5 Combat Bots Only 5 | . 2 5 Max Kills in Single Turn 2 | . 2 1 Gunslinging . | . . . Exploded . | . . . Melee . | . . . Uniques/NPCs Destroyed . | . . . Combat | -11 -10 -10 -------- Run | Yrd Mat Min Hostile Shots Fired 83 | . 23 60 Missed 16 | . 2 14 Damage Taken 1354 | . 345 1009 Core 266 | . 55 211 Absorbed by Shields . | . . . Core Remaining (%) 100 | 100 . . Volleys Fired 58 | . 20 38 Largest 2 | . 2 2 Hottest 60 | . 60 55 Shots Fired 111 | . 37 74 Gun 85 | . 37 48 Cannon 26 | . . 26 Launcher . | . . . Special . | . . . Kinetic 105 | . 31 74 Thermal . | . . . Explosive . | . . . Electromagnetic 6 | . 6 . Robot Hit Streak 5 | . 5 5 Robot Miss Streak 4 | . 2 4 Penetration Max . | . . . Secondary Targets 1 | . 1 . Max Gunslinging Chain 1 | . 1 . Shots Hit Robots 65 | . 23 42 Core Hits 39 | . 16 23 Critical Kills . | . . . Critical Parts Destroyed 1 | . 1 . Critical Strikes 1 | . 1 . Destroy 1 | . 1 . Melee Attacks . | . . . Impact . | . . . Slashing . | . . . Piercing . | . . . Sneak Attacks . | . . . Combat Hostiles . | . . . Follow-up Attacks . | . . . Damage Inflicted 946 | . 335 611 Guns 568 | . 284 284 Cannons 327 | . . 327 Explosions 51 | . 51 . Melee . | . . . Ramming . | . . . Kinetic 826 | . 215 611 Thermal . | . . . Explosive . | . . . Electromagnetic 120 | . 120 . Impact . | . . . Slashing . | . . . Piercing . | . . . Highest Corruption 2 | . . 2 Average Corruption 2 | . . 2 Corruption Purged . | . . . Corruption Blocked . | . . . Effects 9 | . . 9 Message Errors 3 | . . 3 Matter Fused 4 | . . 4 Energy Discharges 1 | . . 1 Data Loss (minor) 1 | . . 1 Overload Shots . | . . . Overflow Damage 16 | . . 16 Projectiles 16 | . . 16 Explosions . | . . . Melee . | . . . Knockbacks 4 | . . 4 Impact . | . . . Kinetic 4 | . . 4 Secondary . | . . . Self-Inflicted Damage 81 | . 81 . Shots 3 | . 3 . Rammed . | . . . Targets Rammed . | . . . Kicked . | . . . Crushed . | . . . Highest Temperature 16 | . 12 16 Average Temperature 8 | . 8 9 Received Heat Transfer 147 | . 147 . Siege Activations . | . . . Robots Corrupted . | . . . Combat Hostiles . | . . . Parts Fried . | . . . Impact Corruptions . | . . . Robots Melted . | . . . Combat Hostiles . | . . . Parts Melted . | . . . Heat Transferred . | . . . Parts Sabotaged . | . . . Parts Stolen . | . . . Parts Stripped . | . . . Power Chain Reactions 1 | . 1 . Alert | -11 -10 -10 ------- Run | Yrd Mat Min Peak Influence 201 | . 201 25 Initial . | . . . Average 31 | . 54 8 Maximum Alert Level 1 | . 1 . Low Security (%) 93 | 100 86 100 Level 1 6 | . 13 . Level 2 . | . . . Level 3 . | . . . Level 4 . | . . . Level 5 . | . . . High Security . | . . . Max Security . | . . . Squads Dispatched 1 | . 1 . Investigation . | . . . Extermination . | . . . Reinforcement 1 | . 1 . Assault . | . . . Garrison . | . . . Intercept . | . . . Searches Triggered . | . . . Construction Impeded . | . . . Haulers Reinforced . | . . . Active Scanning Responses . | . . . Cargo Convoy Interrupts . | . . . Stealth | -11 -10 -10 --------- Run | Yrd Mat Min Distress Signals . | . . . Communications Jammed . | . . . Distress Signals . | . . . Times Spotted 22 | . 7 15 Peak Tracking Total 2 | . 2 2 Tactical Retreats . | . . . Traps | -11 -10 -10 ------- Run | Yrd Mat Min Traps Triggered . | . . . Indirectly . | . . . Trap Hack Attempts . | . . . Triggered . | . . . Disarmed . | . . . Reprogrammed . | . . . Reused . | . . . Traps Extracted . | . . . Installed . | . . . Triggered . | . . . Machines | -11 -10 -10 ---------- Run | Yrd Mat Min Machines Disabled 4 | . 4 . Max in Single Turn 4 | . 4 . Machines Repaired . | . . . Machines Dismantled . | . . . Machines Sabotaged . | . . . Overloaded Fab Kills . | . . . Hacking | -11 -10 -10 --------- Run | Yrd Mat Min Machines Accessed 3 | . 3 . Terminals 1 | . 1 . Fabricators . | . . . Repair Stations . | . . . Recycling Units 2 | . 2 . Scanalyzers . | . . . Garrison Access . | . . . Total Hacks 7 | . 7 . Successful 3 | . 3 . Failed 4 | . 4 . Catastrophic . | . . . Database Lockouts . | . . . Manual . | . . . Terminals 1 | . 1 . Fabricators . | . . . Repair Stations . | . . . Recycling Units 6 | . 6 . Scanalyzers . | . . . Garrison Access . | . . . Terminal Hacks . | . . . Fabricator Hacks . | . . . Repair Station Hacks . | . . . Recycling Unit Hacks 3 | . 3 . Report Inventory 2 | . 2 . Retrieve Components 1 | . 1 . Scanalyzer . | . . . Garrison Access Hacks . | . . . Unauthorized Hacks . | . . . Terminals . | . . . Fabricators . | . . . Repair Stations . | . . . Recycling Units . | . . . Scanalyzers . | . . . Garrison Access . | . . . Data Cores Recovered . | . . . Used . | . . . Hacking Detections 2 | . 2 . Full Trace Events 1 | . 1 . Feedback Events . | . . . Feedback Blocked . | . . . Robot Schematics Acquired . | . . . Robots Built . | . . . Authchips . | . . . Time . | . . . Total Robot Build Rating . | . . . Part Schematics Acquired . | . . . Parts Built . | . . . Authchips . | . . . Time . | . . . Total Part Build Rating . | . . . Parts Repaired . | . . . Time . | . . . Parts Recycled . | . . . Recycled Matter . | . . . Retrieved Matter . | . . . Retrieved Components 3 | . 3 . Parts Scanalyzed . | . . . Part Schematics Acquired . | . . . Parts Damaged . | . . . Bothacking | -11 -10 -10 ------------ Run | Yrd Mat Min Used RIF Installer . | . . . Robots Hacked . | . . . Non-combat . | . . . Combat . | . . . Robot Hacks Applied . | . . . Relay Couplers Released . | . . . Fabnet Peak Effective % . | . . . Robots Rewired . | . . . Allies Hacked . | . . . Hacks Repelled . | . . . Allies | -11 -10 -10 -------- Run | Yrd Mat Min Total Allies . | . . . Largest Group . | . . . Highest-Rated Group . | . . . Highest-Rated Ally . | . . . Total Orders . | . . . Ally Attacks . | . . . Total Damage . | . . . Kills . | . . . Allies Corrupted . | . . . Allies Melted . | . . . Intel | -11 -10 -10 ------- Run | Yrd Mat Min Robot Analysis Total . | . . . Derelict Logs Recovered 1 | . . 1 Drone Launches . | . . . Drone Recoveries . | . . . Exploration | -11 -10 -10 ------------- Run | Yrd Mat Min Turns Passed 1583 | 94 806 683 Spaces Moved 584 | 52 332 200 Core 3 | 3 . . Treads 428 | 49 332 47 Legs 153 | . . 153 Wheels . | . . . Hover . | . . . Flight . | . . . Fastest Speed 50 | 50 160 240 Average Speed 225 | 153 218 255 Slowest Speed 260 | 160 240 260 Overloaded Moves . | . . . Propulsion Burnouts . | . . . Robots Hopped . | . . . Cave-ins Triggered . | . . . Exploration Rate (%) 29 | 3 36 48 Regions Visited 2 Branch Regions 1 Pre-discovered Areas 2 | . . 2 Known Exits Taken 1 | . 1 . Unknown Exits Taken 1 | 1 . . Scrap Searched 1 | . . 1 Spaces Dug . | . . . Terrain Destroyed 3 | . 3 . Melee . | . . . Projectile . | . . . AOE 3 | . 3 . Terrain Rammed . | . . . Walls Destroyed . | . . . Machines Disabled . | . . . Actions | -11 -10 -10 --------- Run | Yrd Mat Min Total 744 | 66 375 303 Wait 23 | . 7 16 Move 582 | 51 331 200 Hop . | . . . Pick Up 44 | 10 10 24 Fast Attach . | . . . Attach 14 | 5 3 6 Detach . | . . . Swap 12 | . 3 9 Drop 11 | . 1 10 Fire 58 | . 20 38 Melee . | . . . Ram . | . . . Kick . | . . . Crush . | . . . Escape Stasis . | . . . Rewire . | . . . Trap . | . . . Miscellaneous . | . . . Route ------- -11/Scrapyard -10/Materials (discovered 3 exits: *Mat / *Min x2) -10/Mines History --------- Turn | Location | Event 16 | -11/Scrapyard | Discovered new exit (range 15) 95 | -11/Scrapyard | Entered Materials 135 | -10/Materials | Discovered new exit (range 16) 317 | -10/Materials | Discovered new exit (range 14) 318 | -10/Materials | Build established: Mutant 427 | -10/Materials | Identified exit to Mines 513 | -10/Materials | Discovered new exit (range 7) 584 | -10/Materials | Identified exit to Materials 901 | -10/Materials | Entered Mines 902 | -10/Mines | Learned location of Storage (-8) 910 | -10/Mines | Assembled infested the area 1248 | -10/Mines | Core integrity fell below 50% 1322 | -10/Mines | Learned location of Zion (-7) 1348 | -10/Mines | A weapon hastily lodged in a ceiling crevice suddenly fell to the ground 1546 | -10/Mines | Core integrity fell below 20% 1584 | -10/Mines | Destroyed by as-09697 with Assembled Maul Last Messages --------------- 01527_ Acquired Corrupted Lgt. Ion Engine. 01528_ Dropped Corrupted Lgt. Ion Engine. 01531_ Acquired Imp. Terrain Scanner. 01532_ Dropped Lgt. Ion Engine. 01544_ as-45104 destroyed. 01549_ as-21296 knocked back. 01551_ Lgt. Cannon destroyed. 01552_ as-21296 destroyed. 01554_ Acquired 6 matter. 01561_ System corrupted: Matter fused (-6). 01562_ Acquired 6 matter. 01564_ Searching scrap... 01564_ Found Lrg. Matter Pod. 01564_ Found 10 Matter. 01572_ K-01 Serf knocked back. 01577_ Acquired Lrg. Matter Pod. 01578_ Acquired 24 matter. 01582_ System corrupted: Energy discharge (-53). 01584_ Terrain Scan Processor destroyed. 01584_ System corrupted by crushing effect (+4). Map ----- +----------------------------------------------------+ | ????????????????????????????????????????? | | ????????????????????????????????????????? | | ????????????????????????????????????????? | | ????????????????????????????????????????? | | ????????????????????????????????????????? | | ????????????????????????????????????????? | | ????????????????????????????????????????? | | ????????????????????????????????????????? | | ????????????????????????????????????????? | | ????????????????????????????????????????? | | ??????????????????????????=%%???????????? | | ??????????????????????????!!%???????????? | | ??????????????????????????%%*???????????? | | ??????????????????????????=!=???????????? | | ?????????????????????????#!*#???????????? | | ?????????????????????????#*=#???????????? | | ?????????????????????????#%=#???????????? | | ?????????????????????????#%!#???????????? | | ?????????????????????????#*=#???????????? | | ?????????????????????????#%=#???????????? | | ?????????????????????????#*=#???????????? | | ?????????????????????????#*!#???????????? | | ?????????????????????????#=*#???????????? | | #???????????????????######!%#???????????? | | ?#??#?????????###??## %##a!#???????????? | | ????????###??## ###!%|!=@!=#???????????? | | ##?#???## ## k%! !!!*% a%#???????????? | | ###???# k !%| !==%%|####???????????? | | ##### """ =!=!%=%##?????????????? | | # #?# """ !%%*%=*!=#?????????????? | | # ### """***=###=*=#?????????????? | | ## =%! *%##?##%=#?????????????? | | # #######! |=##??#|%!#????????????? | | # ####???## ##?#=|%!%???????????? | | ## ##????## #?#!*%=!*??????????? | | ## # #?????### #?#!!%!!*|?????????? | | ####????## ##? *%!* ???????? | | ##????# #?# != ##??????? | | | ###?## ##?# %=###???????? | | = *=!#### #??# *##?????????? | | " %!% %! #??####??????????? | | ## ==|%== #??#?????????????? | | #### = ##????#???????????? | | ##??# #####?????????????????? | | ##???## ##?????????????????????? | | ##????## ####??????????????????????? | | #??????####????????#????????????????? | | #???????????#??????????? ???????????? | | ?#??????????????#???????????????????? | | # #??????????####?????#???????????????? | +----------------------------------------------------+ Best States ------------- Heat Dissipation 25 Energy Generation 14 Energy Capacity 250 Matter Stores 300 Matter Capacity 300 Sight Range 16 Terrain Scan Range 16 Terrain Scan Density 85 Evasion (%) 40 Recoil Reduction 2 Item Schematics ----------------- None Robot Schematics ------------------ None Fabricated ------------ Nothing Alien Tech Used ----------------- None Achievements -------------- None Challenges ------------ None Game ------ Seed MagneticTiamatRefractor Manual? 0 Play Time 00:25:48 Cumulative 7.2 hours Start 2024.04.01 @ 03:40:21 End 2024.04.01 @ 18:53:17 Sessions 1 Manual Loads 0 Difficulty Rogue Special Mode None Game No. 21 Rogue 21 Adventurer 0 Explorer 0 Win Type - Total 0 Types 0/0/0/0/0/0/0/0/0 Lore% 4 Gallery% 12 Achievement% 12 Wizard Run 0 Options --------- Layout 1 ASCII 0 Keyboard 0 Movement Mouse Keybinds 0 Fullscreen 1 Font 16/SmallcapsGlow Map View 50x40 Zoom Use 0% Tactical HUD 1 Map Filters NONE Filters NONE Steam SD RUN: 7b404d9e-eb88-422b-b2cd-314994e532ad